[Event "Uru-ch 2020 Final"]
[Site "Montevideo"]
[Date "2021.03.17"]
[Round "5.3"]
[White "Michailov, Matias"]
[Black "Roselli Mailhe, Bernardo"]
[Result "0-1"]
[ECO "C76"]
[WhiteElo "2251"]
[BlackElo "2429"]
[Annotator "ChessBase"]
[PlyCount "86"]
[EventDate "2021.03.13"]
[EventType "swiss"]
[EventCountry "URU"]
[SourceTitle "playchess.com"]
[Source "ChessBase"]
[SourceQuality "1"]
[TimeControl "5400+30"]

1. e4 {[%emt 0:00:58]} e5 {[%emt 0:00:47]} 2. Nf3 {[%emt 0:00:53]} Nc6 {[%emt 0:02:00]} 3. Bb5 {[%emt 0:03:26]} a6 {[%emt 0:00:08]} 4. Ba4 {[%emt 0:00:06]} d6 {[%emt 0:00:54]} 5. c3 {[%emt 0:02:36]} Bd7 {[%emt 0:02:16]} 6. d4 {[%emt 0:01:08]} g6 {[%emt 0:00:55]} 7. O-O {[%emt 0:03:06]} Bg7 {[%emt 0:00:44]} 8. Re1 {[%emt 0:01:21]} Nf6 {[%emt 0:00:16]} 9. d5 {[%emt 0:04:39]} Ne7 {[%emt 0:04:09]} 10. c4 {[%emt 0:01:53]} b5 {[%emt 0:07:03]} 11. Bb3 {[%emt 0:10:00]} bxc4 {[%emt 0:06:37]} 12. Bxc4 {[%emt 0:00:08]} h6 {[%emt 0:00:36]} 13. Qd3 {[%emt 0:08:05]} O-O {[%emt 0:03:29]} 14. Nc3 {[%emt 0:02:56]} Bc8 {[%emt 0:10:25]} 15. Nd2 {[%emt 0:17:18]} c6 {[%emt 0:15:11]} 16. dxc6 {[%emt 0:03:31]} Nxc6 {[%emt 0:00:21]} 17. a3 {[%emt 0:05:09]} Nd4 {[%emt 0:12:31]} 18. Nf1 {[%emt 0:09:10]} Be6 {[%emt 0:03:55]} 19. Ne3 {[%emt 0:00:54]} a5 {[%emt 0:02:36]} 20. Ncd5 {[%emt 0:04:26]} Nd7 {[%emt 0:01:39]} 21. f3 {[%emt 0:02:54]} Nc5 {[%emt 0:02:08]} 22. Qd1 {[%emt 0:00:07]} f5 {[%emt 0:01:46]} 23. exf5 {[%emt 0:03:56]} gxf5 {[%emt 0:00:07]} 24. Bd2 {[%emt 0:00:19]} f4 {[%emt 0:06:46]} 25. Ng4 {[%emt 0:04:57]} a4 {[%emt 0:04:35]} 26. Bc3 {[%emt 0:02:53]} Nf5 {[%emt 0:04:00]} 27. Qe2 {[%emt 0:03:10]} Nh4 {[%emt 0:02:44]} 28. Kh1 {[%emt 0:03:01]} Ra7 {[%emt 0:03:07]} 29. Rad1 {[%emt 0:00:23]} Qg5 {[%emt 0:00:21]} 30. Nb6 {[%emt 0:00:52]} h5 {[%emt 0:00:47]} 31. Rxd6 {[%emt 0:00:19]} hxg4 {[%emt 0:00:35]} 32. Rxe6 {[%emt 0:00:29]} Nxe6 {[%emt 0:01:00]} 33. Bxe6+ {[%emt 0:00:02]} Kh8 {[%emt 0:00:13]} 34. Bxg4 {[%emt 0:00:22]} Re7 {[%emt 0:00:55]} 35. Nd5 {[%emt 0:00:51]} Ree8 {[%emt 0:00:15]} 36. Qe4 {[%emt 0:00:08]} Rd8 {[%emt 0:01:15]} 37. Nb4 {[%emt 0:01:10]} Nf5 {[%emt 0:00:43]} 38. Nc6 {[%emt 0:00:29]} Rde8 {[%emt 0:00:23]} 39. Bh3 {[%emt 0:00:36]} Ne3 {[%emt 0:00:26]} 40. Bd2 {[%emt 0:00:31]} Rf6 {[%emt 0:00:19]} 41. Re2 {[%emt 0:00:40]} Rd6 {[%emt 0:00:26]} 42. Qxa4 {[%emt 0:00:28]} Qg6 {[%emt 0:00:56]} 43. Bxe3 {[%emt 0:00:35]} fxe3 {[%emt 0:00:22]} 0-1

[Event "Uru-ch 2020 Final"]
[Site "Montevideo"]
[Date "2021.08.22"]
[Round "9.2"]
[White "Lopez Azambuja, Nicolas"]
[Black "Hoffman, Alejandro"]
[Result "1-0"]
[ECO "D35"]
[WhiteElo "2303"]
[BlackElo "2459"]
[Annotator "RC"]
[PlyCount "89"]
[EventDate "2021.03.13"]
[EventType "swiss"]
[EventCountry "URU"]
[SourceTitle "playchess.com"]
[Source "ChessBase"]
[SourceQuality "1"]
[TimeControl "5400+30"]

1. d4 {[%emt 0:00:03]} Nf6 {[%emt 0:00:09]} 2. c4 {[%emt 0:00:10]} e6 {[%emt 0:00:09]} 3. Nc3 {[%emt 0:00:48]} d5 {[%emt 0:00:09]} 4. cxd5 {[%emt 0:00:12]} exd5 {[%emt 0:00:09]} 5. Bg5 {[%emt 0:00:10]} Be7 {[%emt 0:00:08]} 6. e3 {[%emt 0:00:18]} c6 {[%emt 0:00:07]} 7. Qc2 {[%emt 0:00:28]} Nbd7 {[%emt 0:00:08]} 8. Bd3 {[%emt 0:00:28]} Nh5 {[%emt 0:00:09]} 9. Bxe7 {[%emt 0:00:15]} Qxe7 {[%emt 0:00:07]} 10. Nge2 {[%emt 0:00:43]} Nb6 {[%emt 0:00:11]} 11. O-O {[%emt 0:01:10]} g6 {[%emt 0:00:29]} 12. Rae1 {[%emt 0:02:32]} O-O {[%emt 0:02:20]} 13. Nc1 {[%emt 0:01:52]} Be6 {[%emt 0:16:40]} 14. f3 {[%emt 0:06:01]} Rfe8 {[%emt 0:09:21]} 15. Qf2 {[%emt 0:04:50]} Rad8 {[%emt 0:05:43]} 16. Kh1 {[%emt 0:04:52]} c5 {[%emt 0:18:48]} 17. dxc5 {[%emt 0:11:02]} Qxc5 {[%emt 0:00:08]} 18. Nb3 {[%emt 0:01:05]} Qb4 {[%emt 0:00:38]} 19. Rd1 {[%emt 0:16:08]} Nc4 {[%emt 0:11:22]} 20. Bxc4 {[%emt 0:03:40]} dxc4 {[%emt 0:00:08]} 21. Nd4 {[%emt 0:00:24]} Qb6 {[%emt 0:06:10]} 22. Rd2 {[%emt 0:03:21]} f5 {[%emt 0:08:05]} 23. Rfd1 {[%emt 0:03:39]} Bf7 {[%emt 0:01:16]} 24. e4 {[%emt 0:13:24]} f4 {[%emt 0:11:53]} 25. g4 {[%emt 0:02:08]} fxg3 {[%emt 0:00:33]} 26. hxg3 {[%emt 0:02:17]} Nf6 {[%emt 0:00:54]} 27. Qe3 {[%emt 0:04:55]} Qc5 {[%emt 0:04:25]} 28. Nf5 {[%emt 0:01:49]} Qxe3 {[%emt 0:00:07]} 29. Nxe3 {[%emt 0:00:05]} Rxd2 {[%emt 0:00:06]} 30. Rxd2 {[%emt 0:00:03]} a6 {[%emt 0:00:06]} 31. Rd6 {[%emt 0:02:13]} Kg7 {[%emt 0:01:38]} 32. Kg2 {[%emt 0:00:45]} b5 {[%emt 0:02:05]} 33. a3 {[%emt 0:00:34]} Re6 {[%emt 0:00:29]} 34. Rd4 {[%emt 0:03:12]} h5 {[%emt 0:00:14]} 35. f4 {[%emt 0:00:53]} Rb6 {[%emt 0:00:59]} 36. e5 {[%emt 0:00:30]} Ng8 {[%emt 0:01:06]} 37. Rd7 {[%emt 0:00:53]} Kf8 {[%emt 0:00:06]} 38. Ned5 {[%emt 0:01:10]} Rb8 {[%emt 0:00:18]} 39. Nc7 {[%emt 0:02:15]} b4 {[%emt 0:00:19]} 40. axb4 {[%emt 0:02:51]} Rxb4 {[%emt 0:00:30]} 41. Ne4 {[%emt 0:05:17]} Rxb2+ {[%emt 0:00:31]} 42. Kf3 {[%emt 0:00:16]} Rb3+ {[%emt 0:00:49]} 43. Ke2 {[%emt 0:00:34]} Rd3 {[%emt 0:01:13]} 44. Nd6 {[%emt 0:00:39]} Bd5 {[%emt 0:00:53]} 45. Nxd5 {[%emt 0:00:20]} 1-0